[Event "Czech Extraliga 2024-25"]
[Site "Czechia"]
[Date "2024.11.01"]
[Round "9.1"]
[White "Delgerdalai, Bayarjavkhlan"]
[Black "Ter-Sahakyan, Samvel"]
[Result "0-1"]
[ECO "E35"]
[WhiteElo "2341"]
[BlackElo "2609"]
[Annotator "TA"]
[PlyCount "98"]
[EventDate "2024.09.12"]
[EventType "team-tourn"]
[EventCountry "CZE"]
[SourceTitle "playchess.com"]
[Source "ChessBase"]
[SourceQuality "1"]
[TimeControl "40/5400+30:1800+30"]

{[%evp 20,98,6,0,0,-11,-6,0,0,0,0,0,0,-6,0,-17,-15,-14,-8,-22,-3,-19,-20,-21,-11,-24,-25,-31,-23,-22,-25,-22,-14,-33,-28,-29,-25,-59,-52,-52,-52,-52,-52,-52,-52,-82,-82,-256,-248,-202,-219,-217,-243,-289,-260,-417,-305,-458,-475,-445,-279,-360,-366,-375,-279,-389,-380,-333,-351,-843,-753,-1459,-1025,-5102,-2562,-12849,-12847,-29936,-9433,-3167,-2637]} 1. d4 {[%emt 0:00:05]} Nf6 {[%emt 0:00:39]} 2. c4 {[%emt 0:00:06]} e6 {[%emt 0:00:22]} 3. Nc3 {[%emt 0:00:18]} Bb4 {[%emt 0:00:13]} 4. Qc2 {[%emt 0:00:07]} d5 {[%emt 0:01:54]} 5. cxd5 {[%emt 0:03:05]} exd5 {[%emt 0:00:09]} 6. Bg5 {[%emt 0:00:06]} h6 {[%emt 0:00:49]} 7. Bxf6 {[%emt 0:00:47]} Qxf6 {[%emt 0:00:06]} 8. a3 {[%emt 0:00:06]} Bxc3+ {[%emt 0:02:17]} 9. Qxc3 {[%emt 0:00:35]} O-O {[%emt 0:00:11]} 10. e3 {[%emt 0:04:43]} Bf5 {[%emt 0:01:50]} 11. Nf3 {[%emt 0:00:37]} Nd7 {[%emt 0:06:36]} 12. Rc1 {[%emt 0:08:08]} c6 {[%emt 0:10:58]} 13. Be2 {[%emt 0:08:43]} a5 {[%emt 0:05:11] The position is equal.} 14. O-O {[%emt 0:00:41]} Qd6 {[%emt 0:05:53]} 15. Rfe1 {[%emt 0:08:03]} a4 {[%emt 0:03:34]} 16. Nd2 {[%emt 0:14:47]} Rfe8 {[%emt 0:03:25]} 17. Bd3 {[%emt 0:17:23]} Bxd3 {[%emt 0:02:33]} 18. Qxd3 {[%emt 0:00:04]} Re6 {[%emt 0:00:39]} 19. Nb1 {[%emt 0:04:30]} Rae8 {[%emt 0:07:27]} 20. Nc3 {[%emt 0:03:19]} b5 {[%emt 0:00:22]} 21. Na2 {[%emt 0:04:57]} Nb6 {[%emt 0:02:47]} 22. Nb4 {[%emt 0:00:12]} Nc4 {[%emt 0:00:28]} 23. Rc2 {[%emt 0:03:58]} Qe7 {[%emt 0:03:54]} (23... h5 {feels hotter.} 24. Qf5 Rf6 25. Qd3 Qd7) 24. Qd1 {[%emt 0:05:31]} (24. Rce2 {is interesting.} Qg5 25. Qc2 Rg6 26. g3) 24... f5 {[%emt 0:08:30][%cal Of5f4]} 25. Nd3 {[%emt 0:00:33]} Qf6 {[%emt 0:00:40][%cal Of5f4]} 26. Rce2 {[%emt 0:01:23]} g5 {[%emt 0:01:11]} 27. Nc5 {[%emt 0:01:09]} R6e7 {[%emt 0:00:29]} 28. Qd3 {[%emt 0:02:00]} h5 {[%emt 0:04:47]} 29. f3 {[%emt 0:03:12]} Nd6 {[%emt 0:08:41]} 30. Kh1 {[%emt 0:04:19]} h4 {[%emt 0:02:00]} 31. Kg1 {[%emt 0:01:28]} Kh8 {[%emt 0:03:59]} 32. Kh1 {[%emt 0:00:55]} g4 {[%emt 0:03:12]} 33. Kg1 $2 {[%emt 0:00:35] White does not recover from this.} (33. f4 $17 {keeps fighting.}) 33... gxf3 $19 {[%emt 0:03:59]} 34. gxf3 {[%emt 0:00:06]} Rg8+ {[%emt 0:00:09]} 35. Kh1 {[%emt 0:00:16]} Qg5 {[%emt 0:03:08] And now ...f4 would win.} 36. Qd1 {[%emt 0:01:06] [#]} Rxe3 $1 {[%emt 0:01:19]} 37. Rf2 $2 {[%emt 0:00:34]} (37. Nd3 {is the only way for White.}) 37... Nc4 {[%emt 0:00:53]} 38. Nd3 {[%emt 0:00:28]} (38. f4 {is a better defense.} Qg4 39. Nd3) 38... f4 {[%emt 0:00:41]} 39. Nb4 {[%emt 0:00:29]} Qg6 {[%emt 0:01:40]} 40. Rg1 {[%emt 0:00:34]} Qxg1+ {[%emt 0:01:21]} 41. Qxg1 {[%emt 0:30:01]} Rxg1+ {[%emt 0:30:09]} 42. Kxg1 {[%emt 0:00:02][%mdl 4096] Endgame. KRN-KRN} Rb3 {[%emt 0:00:00]} 43. Nxc6 {[%emt 0:00:00]} Nxb2 {[%emt 0:00:00][%cal Ob2d3] Strongly threatening ...Nd3!} 44. Ne7 $2 {[%emt 0:00:00]} (44. Kg2) 44... b4 {[%emt 0:00:00]} 45. Nxd5 {[%emt 0:00:00]} Nd3 {[%emt 0:00:00]} 46. Ra2 {[%emt 0:00:00]} h3 {[%emt 0:00:00]} 47. Ra1 {[%emt 0:00:00] Prevents Rb1+.} bxa3 {[%emt 0:00:00][%cal Oa3a2]} 48. Kf1 {[%emt 0:00:00] [#]} a2 $1 {[%emt 0:00:00][%mdl 512] ( -> ...Rb1+)} 49. Ke2 {[%emt 0:00:00]} Rb1 {[%emt 0:00:00] Weighted Error Value: White=0.59/Black=0.24 (precise) .  Loses game:     	White=1     	---        Mistake:       	White=3     	---        Inaccurate:     	White=4     	Black=1      OK:         	White=10    	Black=16     Best:        	White=1     	Black=2      Strong:       	---       	Black=1} 0-1

[Event "Czech Extraliga 2024-25"]
[Site "Czechia"]
[Date "2024.11.01"]
[Round "9.2"]
[White "Hracek, Zbynek"]
[Black "Gloser, David"]
[Result "1/2-1/2"]
[ECO "C79"]
[WhiteElo "2541"]
[BlackElo "2329"]
[Annotator "TA"]
[PlyCount "82"]
[EventDate "2024.09.12"]
[EventType "team-tourn"]
[EventCountry "CZE"]
[SourceTitle "playchess.com"]
[Source "ChessBase"]
[SourceQuality "1"]
[TimeControl "40/5400+30:1800+30"]

{[%evp 19,82,33,25,29,22,13,18,17,16,20,12,14,18,11,22,1,27,14,20,13,18,10,26,24,19,20,27,30,39,20,36,0,0,2,25,27,26,25,25,26,24,25,25,25,101,88,88,78,120,120,170,170,170,97,97,97,97,97,97,97,97,97,97,97,97]} 1. e4 {[%emt 0:00:04]} e5 {[%emt 0:00:07]} 2. Nf3 {[%emt 0:00:13]} Nc6 {[%emt 0:00:05]} 3. Bb5 {[%emt 0:05:13]} a6 {[%emt 0:00:05]} 4. Ba4 {[%emt 0:00:04]} Nf6 {[%emt 0:00:23]} 5. O-O {[%emt 0:00:30]} d6 {[%emt 0:00:17]} 6. Re1 {[%emt 0:02:45]} Bd7 {[%emt 0:00:59]} 7. Bxc6 {[%emt 0:02:33]} Bxc6 {[%emt 0:05:48]} 8. Nc3 {[%emt 0:01:52]} Be7 {[%emt 0:06:37]} 9. d4 {[%emt 0:00:17]} exd4 {[%emt 0:02:21]} 10. Nxd4 {[%emt 0:00:07]} O-O {[%emt 0:01:42]} 11. Bf4 {[%emt 0:11:55]} Nd7 {[%emt 0:11:29]} 12. Qf3 {[%emt 0:24:01]} Bf6 {[%emt 0:06:44]} 13. Nxc6 {[%emt 0:00:21] The position is equal.} bxc6 {[%emt 0:00:07]} 14. Rad1 {[%emt 0:00:03][%cal Oe4e5]} Re8 {[%emt 0:02:57]} 15. b3 {[%emt 0:02:08]} Qb8 {[%emt 0:05:58]} 16. Bd2 {[%emt 0:08:20]} Qb7 {[%emt 0:04:20]} 17. Qd3 {[%emt 0:02:46]} Re7 {[%emt 0:03:10]} 18. f3 {[%emt 0:02:47]} Rae8 {[%emt 0:02:19]} 19. Be3 {[%emt 0:05:33]} Bh4 {[%emt 0:06:17]} 20. g3 {[%emt 0:04:36]} Bf6 {[%emt 0:01:15] Threatens to win with ...Ne5.} 21. Kg2 {[%emt 0:02:54]} h6 {[%emt 0:03:24]} 22. Bf2 {[%emt 0:04:28]} Ne5 {[%emt 0:08:05]} 23. Qd2 {[%emt 0:00:13]} Nd7 {[%emt 0:01:42]} 24. Na4 {[%emt 0:06:44]} Kh8 {[%emt 0:02:03]} 25. c4 {[%emt 0:03:13]} c5 {[%emt 0:01:52]} 26. Qd5 {[%emt 0:00:43]} Qxd5 {[%emt 0:02:33]} 27. exd5 {[%emt 0:01:16]} Nb6 {[%emt 0:02:26]} 28. Rxe7 {[%emt 0:01:43]} Rxe7 {[%emt 0:00:15]} 29. Nxb6 {[%emt 0:04:59]} cxb6 {[%emt 0:00:04]} 30. Re1 {[%emt 0:00:04] Against Re2} Rxe1 {[%emt 0:01:31]} 31. Bxe1 $11 {[%emt 0:00:04][%mdl 4096] Endgame. KB-KB} a5 {[%emt 0:03:31]} (31... g5 $11 {keeps the balance.}) 32. g4 $16 {[%emt 0:00:15]} Be5 {[%emt 0:02:53]} 33. Bd2 {[%emt 0:02:11]} Kg8 {[%emt 0:02:01]} 34. h4 {[%emt 0:00:48][%cal Bh2h4,Bh4h5][%mdl 32]} f6 {[%emt 0:03:28]} (34... Kf8 $16 {might work better.}) 35. h5 $18 {[%emt 0:01:00]} Kf7 {[%emt 0:01:10] [#]} 36. f4 {[%emt 0:00:43]} ({Better is} 36. Kh3 $1 $18) 36... Bb2 $16 {[%emt 0:01:37][%cal Of6f5] White is better.} 37. Kf3 {[%emt 0:00:03] Strongly threatening Ke4.} f5 {[%emt 0:01:59]} 38. gxf5 {[%emt 0:01:17][%cal Of5f6] f6! is the strong threat.} Bf6 {[%emt 0:00:51]} 39. Ke4 {[%emt 0:00:08]} Ke7 {[%emt 0:01:20]} 40. Kd3 {[%emt 0:00:09]} Kd7 {[%emt 0:03:32]} 41. Bc3 {[%emt 0:31:13]} Kc7 {[%emt 0:04:41] Weighted Error Value: White=0.06 (flawless) /Black=0.11 (very precise) .  Mistake:       	White=1     	Black=2      Inaccurate:     	White=1     	Black=2      OK:         	White=16    	Black=12     Best:        	---       	Black=1} 1/2-1/2

[Event "Czech Extraliga 2024-25"]
[Site "Czechia"]
[Date "2024.11.01"]
[Round "9.3"]
[White "Cerveny, Petr"]
[Black "Nemec, Jachym"]
[Result "1-0"]
[ECO "D02"]
[WhiteElo "2279"]
[BlackElo "2398"]
[Annotator "TA"]
[PlyCount "75"]
[EventDate "2024.09.12"]
[EventType "team-tourn"]
[EventCountry "CZE"]
[SourceTitle "playchess.com"]
[Source "ChessBase"]
[SourceQuality "1"]
[TimeControl "40/5400+30:1800+30"]

{[%evp 9,75,-7,35,42,36,26,19,15,25,31,37,34,24,18,38,19,16,27,25,0,0,-81,-56,-59,-60,-57,-53,-75,0,0,79,75,83,81,104,101,97,25,40,8,38,0,0,0,0,0,0,0,0,3,6,6,31,24,498,481,4810,4787,29951,29947,29939,0,29941,12851,7691,6768,5257,5206]} 1. d4 {[%emt 0:00:06]} Nf6 {[%emt 0:00:04]} 2. Nf3 {[%emt 0:00:08]} d5 {[%emt 0:00:50]} 3. Bf4 {[%emt 0:00:08]} c5 {[%emt 0:05:14]} 4. e3 {[%emt 0:00:06]} Nc6 {[%emt 0:00:03]} 5. Nbd2 {[%emt 0:00:05]} g6 {[%emt 0:13:11]} 6. dxc5 {[%emt 0:06:18]} Qa5 {[%emt 0:07:18]} 7. a3 {[%emt 0:00:53]} Qxc5 {[%emt 0:00:53]} 8. c4 {[%emt 0:00:35] The position is equal.} Bg7 {[%emt 0:04:17]} 9. b4 {[%emt 0:08:14]} Qb6 {[%emt 0:01:29]} 10. c5 {[%emt 0:01:29]} Qd8 {[%emt 0:00:09]} 11. b5 {[%emt 0:02:00]} Na5 {[%emt 0:04:37]} 12. Be5 {[%emt 0:06:32]} O-O {[%emt 0:01:31]} 13. Be2 {[%emt 0:00:22]} Bg4 {[%emt 0:08:18]} 14. h3 {[%emt 0:07:59]} Bxf3 {[%emt 0:01:08]} 15. Bxf3 {[%emt 0:01:19]} (15. Nxf3 $11 {keeps the balance.} Nc4 16. Bxc4 dxc4 17. Qa4) 15... Rc8 $17 {[%emt 0:05:01]} 16. Rc1 {[%emt 0:01:16]} Nd7 $1 {[%emt 0:02:56][%csl LRc5,LRe5]} 17. Bxg7 {[%emt 0:01:22]} Kxg7 {[%emt 0:00:34]} 18. Qa4 {[%emt 0:00:47][%cal Oe1g1]} Kg8 {[%emt 0:10:34]} (18... Rxc5 $2 19. Rxc5 Nxc5 20. Qd4+ Kg8 21. Qxc5 $18) ({Black should play} 18... Nc4 $1 $17 19. c6 (19. Bxd5 $2 Nxc5 20. Qxc4 Nd3+ 21. Qxd3 Rxc1+ 22. Ke2 Rxh1 $19) 19... Ndb6) 19. Qb4 $36 {[%emt 0:02:08][%mdl 2048] White has the initiative.} Nc4 {[%emt 0:11:12]} 20. Nxc4 $16 {[%emt 0:07:48]} (20. Bxd5 Nxc5 21. Ke2 (21. Bxc4 $2 Nd3+ 22. Bxd3 Rxc1+ 23. Ke2 Rxh1 $19) 21... Nxe3 (21... Qxd5 22. Qxc4 Qg5 23. a4 $11) 22. Bxf7+ Rxf7 $17) 20... Rxc5 {[%emt 0:00:05] [#]} 21. O-O $1 {[%emt 0:00:22]} Rxc4 {[%emt 0:01:45]} (21... Qc7 22. Bxd5) 22. Rxc4 {[%emt 0:00:32]} dxc4 {[%emt 0:00:02]} 23. Bxb7 {[%emt 0:07:34] White is much more active.} ({Better is} 23. Rd1 $1 $16 {[%cal Ob4d2] Black must now prevent Qd2!} Qc8 24. Qxe7) 23... Qc7 $11 {[%emt 0:06:18]} 24. Bd5 {[%emt 0:06:35]} Ne5 {[%emt 0:00:39]} 25. f4 {[%emt 0:21:13]} Rd8 {[%emt 0:01:26]} 26. Bc6 {[%emt 0:01:06]} Nxc6 {[%emt 0:03:10]} 27. Qxc4 {[%emt 0:00:08]} Qb6 {[%emt 0:00:35]} 28. bxc6 {[%emt 0:00:41][%mdl 4096] Endgame. Hoping for Kf2. KQR-KQR} Rc8 {[%emt 0:00:12]} (28... Qxe3+ $6 29. Kh2 Rc8 30. Rd1 $14) 29. Rc1 {[%emt 0:01:47] Rc3 is the strong threat.} Qxe3+ {[%emt 0:00:04]} 30. Kh2 {[%emt 0:05:17]} Qxa3 {[%emt 0:02:44]} 31. Rd1 $1 {[%emt 0:00:59] Prevents Qd6.} Qa5 {[%emt 0:04:26][%mdl 8192] Repels c7} (31... Qe3 $11) 32. Rd7 $18 {[%emt 0:00:44]} Qf5 {[%emt 0:00:15] [#]} (32... g5 $142 33. c7 (33. Rxe7 Qf5 $18) 33... h6) 33. Qd4 $1 {[%emt 0:04:06]} (33. Rxe7 Qf6 34. Rxa7 Rxc6 $11) 33... Qf6 {[%emt 0:04:49] [#]} 34. Rd8+ $1 {[%emt 0:01:10]} (34. Qxa7 Rxc6 35. Qd4 Qxd4 36. Rxd4 Rc2 $17) ({Inferior is} 34. Qxf6 exf6 35. Rxa7 Rxc6 $15) 34... Rxd8 {[%emt 0:00:01]} 35. Qxd8+ {[%emt 0:00:05]} Kg7 {[%emt 0:00:03]} 36. Qc7 {[%emt 0:02:32][%cal Oc7e5] Intending Qe5! and mate.} Kh6 {[%emt 0:01:05]} 37. Qb8 $1 {[%emt 0:00:23]} g5 {[%emt 0:00:59]} 38. Qe5 {[%emt 0:01:02] Weighted Error Value: White=0.14 (very precise) /Black=0.64.  Loses game:     	---       	Black=1      Mistake:       	White=2     	Black=3      Inaccurate:     	White=2     	Black=2      OK:         	White=12    	Black=13     Best:        	White=3     	Black=3      Strong:       	White=2     	Black=1} ({Stronger than} 38. Qxa7 Qxf4+ 39. Kh1 Qc1+ 40. Kh2 Qxc6 41. Qxe7 Qe6 42. Qf8+ Kh5 $15) 1-0

[Event "Czech Extraliga 2024-25"]
[Site "Czechia"]
[Date "2024.11.01"]
[Round "9.4"]
[White "Shagbazyan, Taron"]
[Black "Brozka, Karel"]
[Result "1-0"]
[ECO "E49"]
[WhiteElo "2417"]
[BlackElo "2188"]
[Annotator "TA"]
[PlyCount "67"]
[EventDate "2024.09.12"]
[EventType "team-tourn"]
[EventCountry "CZE"]
[SourceTitle "playchess.com"]
[Source "ChessBase"]
[SourceQuality "1"]
[TimeControl "40/5400+30:1800+30"]

{[%evp 23,67,0,10,0,0,0,0,-9,0,0,2,0,10,3,49,75,54,46,53,40,39,39,37,54,95,90,79,85,136,183,181,173,469,453,627,605,702,687,665,614,1715,1468,3077,2764,2565,2452]} 1. d4 {[%emt 0:00:20]} Nf6 2. c4 e6 3. Nc3 Bb4 4. e3 O-O 5. Bd3 d5 6. a3 Bxc3+ {[%emt 1:33:30]} 7. bxc3 {[%emt 1:33:40]} b6 {[%emt 0:00:30]} 8. cxd5 exd5 9. Ne2 c5 {[%emt 0:01:00]} 10. O-O {[%emt 0:01:30]} Ba6 {[%emt 0:00:00]} 11. Bxa6 {[%emt 0:00:00]} Nxa6 {[%emt 0:00:00][%cal Bb8a6,Ba6c7,Bc7b5][%mdl 32]} 12. f3 {[%emt 0:00:00]} Re8 {[%emt 0:00:00]} 13. Ra2 {[%emt 0:00:00]} Qd7 {[%emt 0:00:00]} 14. Ng3 {[%emt 0:00:00]} Nc7 {[%emt 0:00:00]} 15. Re2 {[%emt 0:00:00] The position is equal.} Rad8 {[%emt 0:00:00]} 16. Bb2 {[%emt 0:00:00]} Nb5 {[%emt 0:00:00]} 17. Qd3 {[%emt 0:00:00]} Nd6 {[%emt 0:00:00]} 18. e4 {[%emt 0:00:00][%cal Be3e4,Be4e5][%mdl 32]} Qb5 {[%emt 0:00:00]} (18... h5 $1 $11 {is superior.}) 19. Qxb5 $14 {[%emt 0:00:00]} Nxb5 {[%emt 0:00:00]} 20. e5 {[%emt 0:00:00]} Nd7 {[%emt 0:00:00]} 21. a4 {[%emt 0:00:00]} Nc7 {[%emt 0:00:00]} 22. f4 {[%emt 0:00:00][%cal Bf3f4,Bf4f5,Bf5g6][%mdl 32]} f6 {[%emt 0:00:00]} 23. Nf5 $36 {[%emt 0:00:00][%mdl 2048] White has the initiative.} g6 {[%emt 0:00:00]} 24. Nd6 {[%emt 0:00:00]} Re6 {[%emt 0:00:00]} 25. g4 {[%emt 0:00:00] Threatens to win with f5.} Re7 {[%emt 0:00:00] [#]} (25... fxe5 $142 26. fxe5 (26. dxe5 g5 $14) 26... Rf8) 26. f5 $1 $16 {[%emt 0:00:00] White has more active pieces.} fxe5 {[%emt 0:00:00] [#]} 27. Bc1 $1 {[%emt 0:00:00] Strongly threatening Bg5.} Nf6 $2 {[%emt 0:00:00]} (27... Ra8 28. f6 (28. Bg5 Rg7 $18) 28... Re6) 28. dxe5 $18 {[%emt 0:00:00][%cal Bd4e5,Be5d6,Bd6c7][%mdl 32] White is clearly winning.} Rxd6 {[%emt 0:01:23]} 29. exd6 {[%emt 0:00:00]} Rxe2 {[%emt 0:00:03]} 30. dxc7 {[%emt 0:00:00] KRB-KRN} Re8 {[%emt 0:00:08]} 31. fxg6 {[%emt 0:00:00]} Kg7 {[%emt 0:00:40] Against Bh6+} 32. Bg5 {[%emt 0:00:00]} Ne4 {[%emt 0:00:29]} 33. Bd8 {[%emt 0:00:00]} Nd6 {[%emt 0:00:04] [#]} 34. Rf7+ $1 {[%emt 0:00:00][%mdl 512] Weighted Error Value: White=0.01 (flawless) /Black=0.46.  Mistake:       	---       	Black=3      Inaccurate:     	---       	Black=2      OK:         	White=7     	Black=6      Best:        	White=2     	---        Strong:       	White=2     	---} 1-0

[Event "Czech Extraliga 2024-25"]
[Site "Czechia"]
[Date "2024.11.02"]
[Round "9.5"]
[White "Riha, Vojtech"]
[Black "Jirovsky, Milos"]
[Result "1/2-1/2"]
[ECO "B01"]
[WhiteElo "2261"]
[BlackElo "2430"]
[Annotator "RC"]
[PlyCount "145"]
[EventDate "2024.09.12"]
[EventType "team-tourn"]
[EventCountry "CZE"]
[SourceTitle "playchess.com"]
[Source "ChessBase"]
[SourceQuality "1"]
[TimeControl "40/5400+30:1800+30"]

1. e4 {[%emt 0:00:04]} d5 {[%emt 0:00:15]} 2. exd5 {[%emt 0:00:16]} Qxd5 {[%emt 0:00:02]} 3. Nc3 {[%emt 0:00:24]} Qd6 {[%emt 0:00:04]} 4. d4 {[%emt 0:01:45]} Nf6 {[%emt 0:00:12]} 5. Nf3 {[%emt 0:01:14]} c6 {[%emt 0:01:13]} 6. Bd3 {[%emt 0:04:01]} Bg4 {[%emt 0:01:11]} 7. Be3 {[%emt 0:02:33]} Nbd7 {[%emt 0:01:46]} 8. h3 {[%emt 0:03:30]} Bh5 {[%emt 0:00:56]} 9. O-O {[%emt 0:04:49]} e6 {[%emt 0:00:23]} 10. Re1 {[%emt 0:01:41]} Qc7 {[%emt 0:01:10]} 11. Ne4 {[%emt 0:05:43]} Be7 {[%emt 0:04:43]} 12. Ng3 {[%emt 0:03:31]} Bg6 {[%emt 0:00:15]} 13. c4 {[%emt 0:01:58]} O-O {[%emt 0:03:26]} 14. Ng5 {[%emt 0:06:06]} Bxd3 {[%emt 0:06:35]} 15. Qxd3 {[%emt 0:00:05]} Rfd8 {[%emt 0:00:07]} 16. Rad1 {[%emt 0:06:05]} h6 {[%emt 0:03:56]} 17. N5e4 {[%emt 0:02:11]} Nxe4 {[%emt 0:00:41]} 18. Qxe4 {[%emt 0:02:36]} Nf6 {[%emt 0:03:00]} 19. Qf3 {[%emt 0:02:56]} Rd7 {[%emt 0:01:29]} 20. b3 {[%emt 0:12:19]} Rad8 {[%emt 0:04:07]} 21. Bf4 {[%emt 0:03:34]} Qa5 {[%emt 0:02:42]} 22. Be5 {[%emt 0:01:02]} Ne8 {[%emt 0:13:58]} 23. Nh5 {[%emt 0:09:01]} g6 {[%emt 0:09:37]} 24. Nf4 {[%emt 0:10:12]} Bb4 {[%emt 0:08:04]} 25. Re2 {[%emt 0:02:38]} Bf8 {[%emt 0:06:06]} 26. d5 {[%emt 0:05:09]} exd5 {[%emt 0:06:09]} 27. cxd5 {[%emt 0:00:39]} Bg7 {[%emt 0:01:22]} 28. Bxg7 {[%emt 0:03:57]} Kxg7 {[%emt 0:00:03]} 29. Red2 {[%emt 0:02:59]} Nf6 {[%emt 0:02:28]} 30. d6 {[%emt 0:01:29]} Qe5 {[%emt 0:00:55]} 31. Re2 {[%emt 0:00:22]} Qc5 {[%emt 0:00:11]} 32. Re6 {[%emt 0:01:06]} Rxd6 {[%emt 0:00:59]} 33. Rdxd6 {[%emt 0:00:30]} Rxd6 {[%emt 0:00:04]} 34. Nd3 {[%emt 0:00:12]} Qd4 {[%emt 0:00:49]} 35. Rxd6 {[%emt 0:00:39]} Qxd6 {[%emt 0:00:02]} 36. Qe3 {[%emt 0:00:13]} b6 {[%emt 0:00:58]} 37. g3 {[%emt 0:00:56]} Nd7 {[%emt 0:05:51]} 38. h4 {[%emt 0:00:30]} Nf8 {[%emt 0:00:31]} 39. Ne5 {[%emt 0:00:32]} c5 {[%emt 0:01:41]} 40. Nc4 {[%emt 0:00:29]} Qd1+ {[%emt 0:01:44]} 41. Kh2 {[%emt 0:02:20]} Qa1 {[%emt 0:05:13]} 42. Nd6 {[%emt 0:06:25]} Qd4 {[%emt 0:06:52]} 43. Ne8+ {[%emt 0:04:51]} Kg8 {[%emt 0:01:18]} 44. Qe7 {[%emt 0:07:43]} Qxf2+ {[%emt 0:01:19]} 45. Kh3 {[%emt 0:00:09]} Qf5+ {[%emt 0:07:09]} 46. Kh2 {[%emt 0:00:23]} Ne6 {[%emt 0:09:07]} 47. Nf6+ {[%emt 0:01:17]} Kg7 {[%emt 0:00:20]} 48. Ne8+ {[%emt 0:00:49]} Kh8 {[%emt 0:00:46]} 49. Nf6 {[%emt 0:00:46]} Qf2+ {[%emt 0:00:49]} 50. Kh1 {[%emt 0:00:49]} Qe1+ {[%emt 0:01:03]} 51. Kh2 {[%emt 0:00:12]} Qe2+ {[%emt 0:01:06]} 52. Kh1 {[%emt 0:00:22]} Qd1+ {[%emt 0:00:32]} 53. Kh2 {[%emt 0:00:13]} Qc2+ {[%emt 0:00:37]} 54. Kh1 {[%emt 0:00:08]} Qb1+ {[%emt 0:01:57]} 55. Kh2 {[%emt 0:00:07]} Qc2+ {[%emt 0:01:10]} 56. Kh1 {[%emt 0:00:07]} Qd1+ {[%emt 0:00:09]} 57. Kh2 {[%emt 0:00:07]} Qe2+ {[%emt 0:00:06]} 58. Kh1 {[%emt 0:00:08]} Qf1+ {[%emt 0:00:35]} 59. Kh2 {[%emt 0:00:08]} Qf2+ {[%emt 0:00:25]} 60. Kh1 {[%emt 0:00:06]} Qxg3 {[%emt 0:06:10]} 61. Qxf7 {[%emt 0:01:04]} Qxh4+ {[%emt 0:00:10]} 62. Kg1 {[%emt 0:00:15]} Qe1+ {[%emt 0:00:17]} 63. Kh2 {[%emt 0:00:30]} Qe5+ {[%emt 0:00:30]} 64. Kh1 {[%emt 0:00:47]} Qa1+ {[%emt 0:00:13]} 65. Kh2 {[%emt 0:00:14]} Qxa2+ {[%emt 0:00:07]} 66. Kh1 {[%emt 0:00:26]} Qb1+ {[%emt 0:00:13]} 67. Kh2 {[%emt 0:00:11]} Qc2+ {[%emt 0:00:10]} 68. Kh1 {[%emt 0:00:18]} Qd1+ {[%emt 0:00:17]} 69. Kh2 {[%emt 0:00:16]} Qd6+ {[%emt 0:00:21]} 70. Kg1 {[%emt 0:01:06]} Qg3+ {[%emt 0:00:15]} 71. Kh1 {[%emt 0:00:15]} Qh3+ {[%emt 0:00:09]} 72. Kg1 {[%emt 0:00:06]} Qg3+ {[%emt 0:00:29]} 73. Kh1 {[%emt 0:00:06]} 1/2-1/2